Cogmind - Beta 17 @@@ ROGUE MODE // 2026.07.02 @ 02:39:17 Player: KURIIRI Result: Self-destructed Performance ------------- Evolutions (0) 0 Regions Visited (3) 600 Robots Destroyed (52) 260 Value Destroyed (1517) 1517 Prototype IDs (16) 320 Alien Tech Used (0) 0 Bonus (-24) -24 TOTAL SCORE: 2673 Bonus ------- Friendly Fire -24 Cogmind --------- Core Integrity 99/250 Matter 270/300 Energy 200/200 System Corruption 0% Temperature Cool (0) Movement Rolling (130) Ox2 Location -7/Recycling Parts ------- > --- POWER (1) -------- Subdweller Power Source > --- PROPULSION (2) --- Light Treads Subdweller Monowheel > --- UTILITY (2) ------ Large Storage Unit Medium Armor Plating > --- WEAPON (2) ------- Subdweller Beam Cannon Subdweller Machine Gun > --- INVENTORY (15) --- Compact Wheel Subdweller Monowheel Subdweller Monowheel Medium Armor Plating Medium Armor Plating Gun Armor Scrap Shield Subdweller Laser Subdweller Beam Cannon Subdweller Machine Gun Rocket Launcher Datajack Multitool Makeshift Hammer Peak State ------------ > --- POWER ------------ Light Ion Engine > --- PROPULSION ------- Light Treads Light Treads > --- UTILITY ---------- Self-contained Transmogrifier > --- WEAPON ----------- Advanced Beam Cannon Subdweller Machine Gun > --- INVENTORY -------- Light Treads Gun Armor Advanced Beam Cannon Advanced Beam Cannon Rocket Launcher [Rating: 18] Favorites ----------- Power Subdweller Power Source Engine Subdweller Power Source Propulsion Light Treads Treads Light Treads Leg Aluminum Leg Wheel Subdweller Monowheel Hover Unit Hover Unit Utility Scrap Shield Device Seismic Detector Storage Large Storage Unit Protection Scrap Shield Weapon Subdweller Machine Gun Energy Gun EM Pulse Gun Energy Cannon Subdweller Beam Cannon Ballistic Gun Subdweller Machine Gun Launcher Rocket Launcher Build | -11 -10 -10 -7 ------- Run | Yrd Mat Sub Rec Slots Evolved . | . . . . Power . | . . . . Propulsion . | . . . . Utility . | . . . . Weapon . | . . . . Parts Attached 39 | 3 18 18 . Power 2 | . . 2 . Engine 2 | . . 2 . Core . | . . . . Reactor . | . . . . Propulsion 6 | 2 . 4 . Treads 3 | 2 . 1 . Leg . | . . . . Wheel 3 | . . 3 . Hover . | . . . . Flight . | . . . . Utility 11 | 1 4 6 . Device 2 | 1 . 1 . Storage 2 | . 1 1 . Processor . | . . . . Hackware . | . . . . Protection 7 | . 3 4 . Artifact . | . . . . Weapon 20 | . 14 6 . Energy Gun 6 | . 4 2 . Energy Cannon 5 | . 3 2 . Ballistic Gun 5 | . 3 2 . Ballistic Cannon . | . . . . Launcher 4 | . 4 . . Special Weapon . | . . . . Impact Weapon . | . . . . Slashing Weapon . | . . . . Piercing Weapon . | . . . . Special Melee Weapon . | . . . . Unidentified Prototypes 2 | . 1 1 . Parts Lost 5 | . 2 3 . Power 2 | . . 2 . Propulsion 1 | . . 1 . Utility 1 | . 1 . . Weapon 1 | . 1 . . Highest Loss Streak 1 | . 1 1 . To Critical Strikes . | . . . . Average Backups 6 | 6 12 5 . Power . | 1 1 . . Propulsion . | 4 2 . . Utility . | . 3 . . Weapon 4 | 1 5 4 . Tool/Special . | . . . . Unused Backups 28 | . 11 6 11 Power 1 | . 1 . . Propulsion 5 | . . 3 2 Utility 6 | . 2 1 3 Weapon 14 | . 8 2 4 Tool/Special 2 | . . . 2 Average Slot Usage (%) 87 | . 98 83 . Engine 13 | . 14 13 . Treads 23 | . 28 21 . Wheel 4 | . . 5 . Storage 4 | . 14 1 . Protection 12 | . 9 12 . Energy Gun 1 | . 5 . . Energy Cannon 12 | . 10 13 . Ballistic Gun 13 | . 10 13 . Peak Build Rating 18 | 7 14 18 . Average Rating 12 | 6 10 12 . On Entrance 10 | 6 7 13 15 Avg Prop Armor Cover (%) 5 | . . 5 . Naked Turns . | . . . . Heaviest Build 217 | 11 38 217 . Greatest Support 40 | 40 40 40 . Greatest Overweight (x) 10 | . . 10 . Average Overweight (x) . | . . . . Largest Inventory Capacity 35 | 8 15 35 . Average Capacity 8 | 8 14 6 . Most Carried 15 | 6 15 15 . Average Carried 6 | 5 12 5 . Final Capacity 15 | 8 15 15 15 Final Carried 15 | 4 14 15 15 Transmogrified Parts 1 | . . 1 . Integrity Recovered 11 | . . 11 . Class Distribution -------------------- 60% | Subdweller-Mutant 34% | Mutant Dominant Class ---------------- Mutant | -10/Materials Subdweller-Mutant | -10/Subcaves Subdweller-Mutant | -7/Recycling Resources | -11 -10 -10 -7 ----------- Run | Yrd Mat Sub Rec Matter Collected 1049 | 166 366 517 . Remotely . | . . . . Salvage Created 1782 | 113 783 886 . Parts 110 | 6 43 61 . Haulers Intercepted 2 | . 2 . . Recyclers Shooed 4 | . 4 . . Parts Field Recycled . | . . . . Retrieved Matter . | . . . . Parts Self-Destructed 16 | . . 16 . Prevented . | . . . . Parts Restored . | . . . . Kills | -11 -10 -10 -7 ------- Run | Yrd Mat Sub Rec Combat Hostiles Destroyed 40 | . 13 27 . Guns 14 | . 6 8 . Cannons 13 | . 1 12 . AOE 13 | . 6 7 . Classes Destroyed 10 | 2 6 2 . Builder 3 | . 3 . . Tunneler 2 | 1 1 . . Hauler 2 | . 2 . . Recycler 2 | 1 1 . . Operator 1 | . 1 . . Watcher 2 | . 2 . . Swarmer 6 | . . 6 . Grunt 13 | . 11 2 . Artisan 1 | . . 1 . Subdweller 21 | . 2 19 . Best Kill Streak 4 | 1 4 4 . Combat Bots Only 4 | . 2 4 . Max Kills in Single Turn 2 | 1 2 2 . Gunslinging . | . . . . Exploded 2 | . 2 2 . Melee . | . . . . Uniques/NPCs Destroyed . | . . . . Combat | -11 -10 -10 -7 -------- Run | Yrd Mat Sub Rec Hostile Shots Fired 130 | . 43 87 . Missed 36 | . 10 26 . Hits 94 | . 33 61 . Projectile 94 | . 33 61 . AOE 5 | . 3 2 . Damage Taken 1664 | . 551 1113 . Core 151 | . 85 66 . Absorbed by Shields . | . . . . Core Remaining (%) 100 | 100 . . . Volleys Fired 230 | 6 65 159 . Largest 2 | 2 2 2 . Hottest 136 | 40 136 98 . Shots Fired 309 | 12 121 176 . Gun 210 | 12 96 102 . Cannon 86 | . 20 66 . Launcher 13 | . 5 8 . Special . | . . . . Kinetic 144 | 12 44 88 . Thermal 100 | . 20 80 . Explosive 13 | . 5 8 . Electromagnetic 52 | . 52 . . Robot Hit Streak 20 | 3 11 20 . Robot Miss Streak 6 | 3 6 2 . Penetration Max . | . . . . Secondary Targets 1 | . . 1 . Max Gunslinging Chain 1 | . . 1 . Shots Hit Robots 146 | 6 72 68 . Core Hits 83 | 4 40 39 . Critical Kills 1 | . 1 . . Critical Parts Destroyed . | . . . . Critical Strikes 1 | . 1 . . Meltdown 1 | . 1 . . Melee Attacks . | . . . . Impact . | . . . . Slashing . | . . . . Piercing . | . . . . Sneak Attacks . | . . . . Combat Hostiles . | . . . . Follow-up Attacks . | . . . . Damage Inflicted 4052 | 51 1634 2367 . Guns 1290 | 51 787 452 . Cannons 1391 | . 286 1105 . Explosions 1343 | . 533 810 . Melee . | . . . . Ramming 28 | . 28 . . Kinetic 632 | 51 314 267 . Thermal 1787 | . 497 1290 . Explosive 1132 | . 322 810 . Electromagnetic 473 | . 473 . . Impact . | . . . . Slashing . | . . . . Piercing . | . . . . Highest Corruption . | . . . . Average Corruption . | . . . . Corruption Purged . | . . . . Corruption Blocked . | . . . . Overload Shots . | . . . . Overflow Damage 36 | . . 36 . Projectiles 29 | . . 29 . Explosions 7 | . . 7 . Melee . | . . . . Knockbacks . | . . . . Impact . | . . . . Kinetic . | . . . . Secondary . | . . . . Self-Inflicted Damage 12 | . . 12 . Shots 1 | . . 1 . Rammed 5 | . 5 . . Targets Rammed 6 | . 6 . . Kicked . | . . . . Crushed 1 | . 1 . . Highest Temperature 420 | . 420 6 . Average Temperature 103 | . 108 3 . Received Heat Transfer 330 | . 183 147 . Effects 1 | . 1 . . Short Circuit 1 | . 1 . . Siege Activations . | . . . . Martial Activations . | . . . . Shielding Activations . | . . . . Robots Disrupted 1 | . 1 . . Combat Hostiles 1 | . 1 . . Robots Corrupted . | . . . . Combat Hostiles . | . . . . Parts Fried 1 | . 1 . . Impact Corruptions . | . . . . Robots Melted 1 | . 1 . . Combat Hostiles . | . . . . Parts Melted 5 | . 1 4 . Heat Transferred 2510 | . 768 1742 . Parts Sabotaged . | . . . . Parts Stolen . | . . . . Parts Stripped . | . . . . Power Chain Reactions 3 | . 3 . . Alert | -11 -10 -10 -7 ------- Run | Yrd Mat Sub Rec Maximum Alert Level . | . . . . Low Security (%) 100 | 100 100 . . Level 1 . | . . . . Level 2 . | . . . . Level 3 . | . . . . Level 4 . | . . . . Level 5 . | . . . . High Security . | . . . . Max Security . | . . . . Peak Influence 189 | 5 189 . . Initial . | . . . . Average 82 | 1 87 . . Influence Increases 723 | 10 488 225 . Destroy 0b10 Robot/C 380 | . 220 160 . Destroy 0b10 Robot/NC 60 | 10 50 . . Destroy Leader 78 | . 58 20 . Successful Hack 29 | . 29 . . Select Force Hacks 60 | . 60 . . Disable Machine 45 | . 45 . . Destroy Structure 26 | . 26 . . Lose Combat Pursuer 45 | . . 45 . Influence Decreases 723 | 10 477 236 . Entered New Map 6 | . . 6 . Time Decay 677 | 10 457 210 . Lost Part 30 | . 20 10 . Lost Ally 10 | . . 10 . Squads Dispatched 3 | . 3 . . Investigation 2 | . 2 . . Extermination . | . . . . Reinforcement 1 | . 1 . . Assault . | . . . . Garrison . | . . . . Intercept . | . . . . Searches Triggered . | . . . . Construction Impeded . | . . . . Haulers Reinforced . | . . . . Active Scanning Responses . | . . . . Cargo Convoy Interrupts . | . . . . Stealth | -11 -10 -10 -7 --------- Run | Yrd Mat Sub Rec Distress Signals 2 | . 2 . . Communications Jammed . | . . . . Distress Signals . | . . . . Times Spotted 54 | . 22 32 . Peak Tracking Total 6 | . 3 6 . Tactical Retreats 1 | . . 1 . Traps | -11 -10 -10 -7 ------- Run | Yrd Mat Sub Rec Traps Triggered 2 | . 1 1 . Indirectly . | . . . . Trap Hack Attempts . | . . . . Triggered . | . . . . Disarmed . | . . . . Reprogrammed . | . . . . Reused . | . . . . Traps Extracted . | . . . . Installed . | . . . . Triggered . | . . . . Machines | -11 -10 -10 -7 ---------- Run | Yrd Mat Sub Rec Machines Disabled 7 | . 3 4 . Max in Single Turn 3 | . 1 3 . Machines Repaired . | . . . . Machines Dismantled . | . . . . Machines Sabotaged . | . . . . Overloaded Fab Kills . | . . . . Hacking | -11 -10 -10 -7 --------- Run | Yrd Mat Sub Rec Machines Accessed 11 | . 9 2 . Terminals 7 | . 7 . . Fabricators . | . . . . Repair Stations . | . . . . Recycling Units 2 | . 2 . . Scanalyzers . | . . . . Garrison Access . | . . . . Total Hacks 31 | . 22 9 . Successful 20 | . 11 9 . Failed 11 | . 11 . . Catastrophic 1 | . 1 . . Database Lockouts . | . . . . Manual 23 | . 23 . . Terminals 20 | . 20 . . Fabricators . | . . . . Repair Stations . | . . . . Recycling Units 2 | . 2 . . Scanalyzers . | . . . . Garrison Access . | . . . . Terminal Hacks 11 | . 2 9 . Record 8 | . . 8 . Robot Analysis 1 | . 1 . . Locate Traps 1 | . 1 . . Proto ID Catalog 1 | . . 1 . Fabricator Hacks . | . . . . Repair Station Hacks . | . . . . Recycling Unit Hacks . | . . . . Scanalyzer . | . . . . Garrison Access Hacks . | . . . . Unauthorized Hacks 9 | . 9 . . Terminals 7 | . 7 . . Assimilate 1 | . 1 . . Skim 6 | . 6 . . Fabricators . | . . . . Repair Stations . | . . . . Recycling Units 2 | . 2 . . Tunnel 2 | . 2 . . Scanalyzers . | . . . . Garrison Access . | . . . . Data Cores Recovered . | . . . . Used . | . . . . Hacking Detections 6 | . 6 . . Full Trace Events . | . . . . Feedback Events . | . . . . Feedback Blocked . | . . . . Robot Schematics Acquired . | . . . . Robots Built . | . . . . Authchips . | . . . . Time . | . . . . Total Robot Build Rating . | . . . . Part Schematics Acquired . | . . . . Parts Built . | . . . . Authchips . | . . . . Time . | . . . . Total Part Build Rating . | . . . . Part Studies Acquired . | . . . . Parts Repaired . | . . . . Time . | . . . . Parts Recycled . | . . . . Recycled Matter . | . . . . Retrieved Matter . | . . . . Retrieved Components . | . . . . Parts Scanalyzed . | . . . . Part Schematics Acquired . | . . . . Parts Damaged . | . . . . Bothacking | -11 -10 -10 -7 ------------ Run | Yrd Mat Sub Rec Used RIF Installer . | . . . . Robots Hacked . | . . . . Non-combat . | . . . . Combat . | . . . . Robot Hacks Applied . | . . . . Relay Couplers Released . | . . . . Fabnet Peak Effective % . | . . . . Robots Rewired . | . . . . Allies Hacked . | . . . . Hacks Repelled . | . . . . Allies | -11 -10 -10 -7 -------- Run | Yrd Mat Sub Rec Total Allies 1 | . 1 . . Largest Group 1 | . 1 1 . Highest-Rated Group 10 | . 10 10 . Highest-Rated Ally 10 | . 10 10 . Total Orders 5 | . 2 3 . STAY 3 | . 1 2 . FOLLOW 2 | . 1 1 . Ally Attacks . | . . . . Total Damage . | . . . . Kills . | . . . . Allies Corrupted . | . . . . Allies Melted . | . . . . Intel | -11 -10 -10 -7 ------- Run | Yrd Mat Sub Rec Active Infowar (turns) 443 | 29 414 . . Seismic 443 | 29 414 . . Robot Analysis Total 1 | . 1 . . Derelict Logs Recovered 2 | . . 2 . Drone Launches . | . . . . Drone Recoveries . | . . . . Exploration | -11 -10 -10 -7 ------------- Run | Yrd Mat Sub Rec Turns Passed 6807 | 94 1469 5244 . Spaces Moved 3814 | 61 708 3045 . Core . | . . . . Treads 2331 | 2 708 1621 . Legs 59 | 59 . . . Wheels 1424 | . . 1424 . Hover . | . . . . Flight . | . . . . Fastest Speed 110 | 120 160 110 . Average Speed 150 | 121 160 149 . Slowest Speed 960 | 160 160 960 . Overloaded Moves . | . . . . Propulsion Burnouts . | . . . . Robots Hopped . | . . . . Potential Cave-ins . | . . . . Cave-ins Triggered . | . . . . Exploration Rate (%) 50 | 4 98 97 1 Regions Visited 3 Branch Regions 2 Pre-discovered Areas 3 | . 2 1 . Known Exits Taken . | . . . . Unknown Exits Taken 3 | 1 1 1 . Scrap Searched 11 | . . 11 . Spaces Dug 8 | . . 8 . Terrain Destroyed 110 | . 33 77 . Melee . | . . . . Projectile 19 | . 1 18 . AOE 91 | . 32 59 . Terrain Rammed . | . . . . Walls Destroyed . | . . . . Machines Disabled . | . . . . Actions | -11 -10 -10 -7 --------- Run | Yrd Mat Sub Rec Total 4570 | 72 932 3566 . Wait 337 | 1 92 244 . Move 3811 | 60 707 3044 . Hop . | . . . . Pick Up 59 | . 24 35 . Fast Attach 21 | 1 3 17 . Attach 8 | 2 2 4 . Detach 3 | . 1 2 . Swap 22 | . 14 8 . Drop 52 | 2 18 32 . Fire 230 | 6 65 159 . Melee . | . . . . Ram . | . . . . Kick . | . . . . Crush 6 | . 6 . . Escape Stasis . | . . . . Rewire . | . . . . Trap . | . . . . Miscellaneous 21 | . . 21 . Route ------- -11/Scrapyard -10/Materials (discovered 5 exits: [*Mat x3] / [*Min] / *Sub) -10/Subcaves (discovered 3 exits: *Mat x2 / [*Rec]) -7/Recycling History --------- Turn | Location | Event 12 | -11/Scrapyard | Discovered new exit (range 3) 95 | -11/Scrapyard | Entered Materials 242 | -10/Materials | Discovered new exit (range 15) 312 | -10/Materials | Build established: Mutant 417 | -10/Materials | Discovered new exit (range 5) 872 | -10/Materials | Discovered new exit (range 10) 895 | -10/Materials | Derelicts attacked the area 1148 | -10/Materials | Discovered new exit (range 9) 1472 | -10/Materials | Discovered new exit (range 16) 1564 | -10/Materials | Entered Subcaves 1564 | -10/Subcaves | Accompanied by 1 ally 1565 | -10/Subcaves | Approached by a straggling Scientist 1565 | -10/Subcaves | Identified exit to Materials 1611 | -10/Subcaves | Ambushed by Subdweller buried in earth 1624 | -10/Subcaves | Discovered new exit (range 14) 1789 | -10/Subcaves | Visited 4L-MR0's lab 1803 | -10/Subcaves | Found Prototype Device 1803 | -10/Subcaves | Identified Sfc. Transmogrifier 1810 | -10/Subcaves | Found Prototype Protection 2422 | -10/Subcaves | Disturbed a concealed Subdweller 2651 | -10/Subcaves | Build established: Subdweller-Mutant 3015 | -10/Subcaves | A swath of the cavern ceiling suddenly collapsed 3609 | -10/Subcaves | Shifting Twisted Machinery released Sub. Laser 3701 | -10/Subcaves | Shifting Twisted Machinery released Mak. Thermal Plating 3759 | -10/Subcaves | Core integrity fell below 50% 3836 | -10/Subcaves | Shifting Twisted Machinery released Enh. Flamer 3875 | -10/Subcaves | Shifting Twisted Machinery released Sub. Power Source 4138 | -10/Subcaves | Disturbed a concealed Subdweller 4284 | -10/Subcaves | A Subdweller sparked back to life 4284 | -10/Subcaves | A Subdweller sparked back to life 4284 | -10/Subcaves | A Subdweller sparked back to life 4407 | -10/Subcaves | Ambushed by Subdweller buried in earth 5639 | -10/Subcaves | Visited Clippyterm 5642 | -10/Subcaves | Learned Factory trap positions 5833 | -10/Subcaves | Shifting Twisted Machinery released Sub. Shrapnel Launcher 5919 | -10/Subcaves | Learned location of Zion (-6) 5919 | -10/Subcaves | Met a Zionite searching for "candidates" 5927 | -10/Subcaves | Shifting Twisted Machinery released Sub. Shrapnel Launcher 6275 | -10/Subcaves | Ambushed by Subdweller buried in earth 6808 | -10/Subcaves | Entered Recycling 6808 | -7/Recycling | Self-destructed Last Messages --------------- 06512_ Acquired 2 matter. 06525_ Subatomizers dissect the Disposable Heat Sink. 06559_ Sub. Monowheel shoots sparks and powers down. 06560_ Dropped Broken Sub. Monowheel. 06575_ Acquired Sub. Monowheel. 06633_ Dropped Scrap Shield. 06634_ Acquired Lrg. Storage Unit. 06636_ Acquired Scrap Shield. 06638_ Acquired Gun Armor. 06643_ Acquired Med. Armor Plating. 06653_ Acquired Com. Wheel. 06658_ Acquired Med. Armor Plating. 06707_ Acquired Datajack. 06739_ Acquired Broken Sub. Monowheel. 06747_ Acquired Sub. Monowheel. 06749_ Acquired Multitool. LOCATION=UNKNOWN GOAL=ESCAPE Map ----- +----------------------------------------------------+ | | | | | | | | | | | ?????????????????????????????????????????????????? | | ?????????????????????????????????????????????????? | | ?????????????????????????????????????????????????? | | ?????????????????????????????????????????????????? | | ?????????????????????????????????????????????????? | | ?????????????????????????????????????????????????? | | ?????????????????????????????????????????????????? | | ?????????????????????????????????????????????????? | | ?????????????????????????????????????????????????? | | ?????????????????????????????????????????????????? | | ?????????????????????????????????????????????????? | | ?????????????????????????????????????????????????? | | ?????????????????????????????????????????????????? | | ?????????????????????????????????????????????????? | | ?????????????????????????????????????????????????? | | ?????????????????????????????????????????????????? | | ?????????????????????????????????????????????????? | | ?????????????????????????????????????????????????? | | ?????????????########+######?????????????????????? | | ?????????? #?????????????????????? | | ?????????? @ #?????????????????????? | | ?????????? #?????????????????????? | | ?????????????#####+##+######?????????????????????? | | ?????????????????????????????????????????????????? | | ?????????????????????????????????????????????????? | | ?????????????????????????????????????????????????? | | ?????????????????????????????????????????????????? | | ?????????????????????????????????????????????????? | | ?????????????????????????????????????????????????? | | ?????????????????????????????????????????????????? | | ?????????????????????????????????????????????????? | | ?????????????????????????????????????????????????? | | ?????????????????????????????????????????????????? | | ?????????????????????????????????????????????????? | | ?????????????????????????????????????????????????? | | ?????????????????????????????????????????????????? | | ?????????????????????????????????????????????????? | | ?????????????????????????????????????????????????? | | ?????????????????????????????????????????????????? | | ?????????????????????????????????????????????????? | | ?????????????????????????????????????????????????? | | ?????????????????????????????????????????????????? | | ?????????????????????????????????????????????????? | | ?????????????????????????????????????????????????? | | ?????????????????????????????????????????????????? | +----------------------------------------------------+ Best States ------------- Heat Dissipation 25 Energy Generation 15 Energy Capacity 200 Matter Stores 300 Matter Capacity 300 Sight Range 16 Terrain Scan Density 10 Armor Coverage 800 Evasion (%) 55 Recoil Reduction 2 Item Schematics ----------------- None Robot Schematics ------------------ None Fabricated ------------ Nothing Repaired ---------- Nothing Studied --------- None Alien Tech Used ----------------- None Achievements -------------- None Challenges ------------ None Game ------ Seed TowerBlinkChip Manual? 0 Play Time 00:29:36 Cumulative 583.6 hours Start 2026.07.02 @ 01:51:08 End 2026.07.02 @ 02:39:17 Sessions 3 Manual Loads 0 Difficulty Rogue Special Mode None Game No. 498 Rogue 462 Adventurer 36 Explorer 0 Win Type - Total 5 Types 2/0/0/1/0/0/0/2/0/0 Lore% 84 Gallery% 72 Achievement% 65 Wizard Run 0 Options --------- Layout 2 ASCII 0 Keyboard 0 Movement Numpad Keybinds 0 Fullscreen 1 Font 48/Smallcaps Map View 50x44 Zoom Use 0% Tactical HUD 1 Map Filters NONE Filters NONE Steam 1 RUN: 2649d945-0ff0-4d3f-8a61-3d8ec9673cba